[Event "Late-Titled-Tuesday-Blitz-October-24-2023"]
[Site "Chess.com"]
[Date "2023.10.24"]
[Round "1"]
[White "cassoulet"]
[Black "Roedor"]
[Result "1-0"]
[WhiteElo "2789"]
[BlackElo "2450"]
[TimeControl "180+1"]
[EndTime "14:07:03 PDT"]
[Termination "cassoulet won by resignation"]

1. d4 {[%clk 0:02:59.6]} 1... Nf6 {[%clk 0:02:56.9]} 2. Bg5 {[%clk 0:02:58.6]}
2... d5 {[%clk 0:02:55.9]} 3. Bxf6 {[%clk 0:02:58.3]} 3... gxf6 {[%clk
0:02:55.9]} 4. e3 {[%clk 0:02:58.2]} 4... c5 {[%clk 0:02:56.2]} 5. Nf3 {[%clk
0:02:56.5]} 5... Nc6 {[%clk 0:02:55.5]} 6. Nbd2 {[%clk 0:02:55.8]} 6... cxd4
{[%clk 0:02:54.3]} 7. exd4 {[%clk 0:02:54.7]} 7... Bg4 {[%clk 0:02:53.2]} 8. c3
{[%clk 0:02:54.5]} 8... e6 {[%clk 0:02:53.4]} 9. Bb5 {[%clk 0:02:53.7]} 9... Rc8
{[%clk 0:02:52.9]} 10. Qa4 {[%clk 0:02:50.1]} 10... Qb6 {[%clk 0:02:50.9]} 11.
O-O-O {[%clk 0:02:47.1]} 11... a6 {[%clk 0:02:49.5]} 12. Be2 {[%clk 0:02:42.7]}
12... Bh5 {[%clk 0:02:48.3]} 13. Kb1 {[%clk 0:02:42.5]} 13... Bg6+ {[%clk
0:02:48]} 14. Ka1 {[%clk 0:02:42.7]} 14... Be7 {[%clk 0:02:43.6]} 15. Nh4 {[%clk
0:02:42.2]} 15... Kf8 {[%clk 0:02:38.3]} 16. f4 {[%clk 0:02:36.3]} 16... f5
{[%clk 0:02:31.1]} 17. Nhf3 {[%clk 0:02:34.7]} 17... Bh5 {[%clk 0:02:31.4]} 18.
Rhe1 {[%clk 0:02:34.1]} 18... Rg8 {[%clk 0:02:29.4]} 19. g3 {[%clk 0:02:33.7]}
19... Qa5 {[%clk 0:02:15.5]} 20. Qxa5 {[%clk 0:02:25.9]} 20... Nxa5 {[%clk
0:02:16.4]} 21. Ne5 {[%clk 0:02:26.2]} 21... Bxe2 {[%clk 0:02:16.2]} 22. Rxe2
{[%clk 0:02:27.1]} 22... Nc6 {[%clk 0:02:15.7]} 23. Ndf3 {[%clk 0:02:25.1]}
23... Bf6 {[%clk 0:02:13.8]} 24. Nd7+ {[%clk 0:02:22]} 24... Kg7 {[%clk
0:02:12]} 25. Nc5 {[%clk 0:02:20]} 25... Rc7 {[%clk 0:02:05.9]} 26. Rxe6 {[%clk
0:02:12]} 26... Ra8 {[%clk 0:00:58.9]} 27. Rd6 {[%clk 0:02:02.7]} 27... b6
{[%clk 0:00:55]} 28. Nd7 {[%clk 0:01:52.4]} 28... Be7 {[%clk 0:00:43.6]} 29.
Rxd5 {[%clk 0:01:52.5]} 29... Rd8 {[%clk 0:00:38.4]} 30. Nxb6 {[%clk 0:01:52.4]}
30... Rb8 {[%clk 0:00:32.1]} 31. Na4 {[%clk 0:01:39.3]} 31... Kg6 {[%clk
0:00:24.6]} 32. Nc5 {[%clk 0:01:39.2]} 32... Rb6 {[%clk 0:00:17.1]} 33. Nd7
{[%clk 0:01:38.1]} 33... Rb5 {[%clk 0:00:15.7]} 34. Nde5+ {[%clk 0:01:37.3]}
34... Nxe5 {[%clk 0:00:15.9]} 35. dxe5 {[%clk 0:01:29.2]} 35... h5 {[%clk
0:00:12.4]} 36. Rxb5 {[%clk 0:01:27.7]} 36... axb5 {[%clk 0:00:13.3]} 37. Kb1
{[%clk 0:01:27.8]} 37... h4 {[%clk 0:00:13.1]} 38. gxh4 {[%clk 0:01:27.1]} 38...
Rc4 {[%clk 0:00:13.1]} 39. Rd4 {[%clk 0:01:26.4]} 39... Rc5 {[%clk 0:00:13.1]}
40. Kc2 {[%clk 0:01:25.7]} 40... Kh5 {[%clk 0:00:13.4]} 41. Rd7 {[%clk
0:01:25.3]} 41... Bf8 {[%clk 0:00:10.8]} 42. Rxf7 {[%clk 0:01:25.2]} 42... Bh6
{[%clk 0:00:11.4]} 43. Nd4 {[%clk 0:01:19.9]} 43... Kg4 {[%clk 0:00:10.5]} 44.
Rxf5 {[%clk 0:01:17.4]} 44... b4 {[%clk 0:00:09.4]} 45. Rf6 {[%clk 0:01:13.7]}
45... Bxf4 {[%clk 0:00:09.1]} 46. h3+ {[%clk 0:01:14.3]} 46... Kg3 {[%clk
0:00:09]} 47. Ne2+ {[%clk 0:01:13.2]} 47... Kf3 {[%clk 0:00:08.7]} 48. Nxf4
{[%clk 0:01:12.6]} 48... Ke4 {[%clk 0:00:07.8]} 49. Nd3 {[%clk 0:01:12.6]} 49...
Rd5 {[%clk 0:00:06.5]} 50. Rf4+ {[%clk 0:01:12.4]} 50... Ke3 {[%clk 0:00:06.5]}
51. Rd4 {[%clk 0:01:10.1]} 51... Ra5 {[%clk 0:00:04.6]} 52. Nxb4 {[%clk
0:01:09.4]} 52... Rxe5 {[%clk 0:00:03.9]} 53. a4 {[%clk 0:01:09.3]} 53... Ke2
{[%clk 0:00:03.8]} 54. Kb3 {[%clk 0:01:08.6]} 54... Re3 {[%clk 0:00:03.5]} 55.
a5 {[%clk 0:01:08.6]} 55... Rxh3 {[%clk 0:00:03.6]} 56. a6 {[%clk 0:01:09.1]}
1-0

[Event "Late-Titled-Tuesday-Blitz-October-24-2023"]
[Site "Chess.com"]
[Date "2023.10.24"]
[Round "1"]
[White "MajorCoast"]
[Black "Karttunen"]
[Result "1-0"]
[WhiteElo "2263"]
[BlackElo "2581"]
[TimeControl "180+1"]
[EndTime "14:07:05 PDT"]
[Termination "MajorCoast won by resignation"]

1. d4 {[%clk 0:03:00.4]} 1... Nf6 {[%clk 0:02:59.8]} 2. Nf3 {[%clk 0:02:59.9]}
2... e6 {[%clk 0:03:00]} 3. Bf4 {[%clk 0:03:00]} 3... d5 {[%clk 0:03:00.2]} 4.
e3 {[%clk 0:03:00.6]} 4... Bd6 {[%clk 0:03:00.2]} 5. Bg3 {[%clk 0:03:00.6]} 5...
c5 {[%clk 0:02:58.4]} 6. c3 {[%clk 0:03:00.3]} 6... Nc6 {[%clk 0:02:58.6]} 7.
Nbd2 {[%clk 0:03:00.7]} 7... O-O {[%clk 0:02:52.5]} 8. Bd3 {[%clk 0:03:01]} 8...
h6 {[%clk 0:02:52.3]} 9. O-O {[%clk 0:02:52.7]} 9... Bxg3 {[%clk 0:02:51.7]} 10.
hxg3 {[%clk 0:02:53.2]} 10... Qd6 {[%clk 0:02:47.8]} 11. e4 {[%clk 0:02:52]}
11... dxe4 {[%clk 0:02:42.6]} 12. Nxe4 {[%clk 0:02:47.4]} 12... Nxe4 {[%clk
0:02:40.7]} 13. Bxe4 {[%clk 0:02:47.8]} 13... cxd4 {[%clk 0:02:39.5]} 14. Nxd4
{[%clk 0:02:25.1]} 14... Nxd4 {[%clk 0:02:38.8]} 15. Qxd4 {[%clk 0:02:26]} 15...
Qxd4 {[%clk 0:02:30.4]} 16. cxd4 {[%clk 0:02:26.9]} 16... Rd8 {[%clk 0:02:29.6]}
17. Rfd1 {[%clk 0:02:27.4]} 17... Bd7 {[%clk 0:02:26.7]} 18. d5 {[%clk
0:02:26.1]} 18... e5 {[%clk 0:02:19.2]} 19. d6 {[%clk 0:02:18]} 19... Rac8
{[%clk 0:02:07.5]} 20. Rac1 {[%clk 0:02:10.5]} 20... Bc6 {[%clk 0:01:51.6]} 21.
Bxc6 {[%clk 0:01:57.8]} 21... Rxc6 {[%clk 0:01:50.8]} 22. Rxc6 {[%clk
0:01:51.9]} 22... bxc6 {[%clk 0:01:50.9]} 23. d7 {[%clk 0:01:28.6]} 23... Kf8
{[%clk 0:01:50.2]} 24. Rd6 {[%clk 0:01:28.6]} 24... Ke7 {[%clk 0:01:50.2]} 25.
Rxc6 {[%clk 0:01:28.5]} 25... Rxd7 {[%clk 0:01:50.5]} 26. Kf1 {[%clk 0:01:18.5]}
26... Rb7 {[%clk 0:01:09.4]} 27. b3 {[%clk 0:01:11.5]} 27... Kd7 {[%clk
0:01:09.4]} 28. Rc2 {[%clk 0:01:11.7]} 28... Rb6 {[%clk 0:01:06.7]} 29. Ke2
{[%clk 0:01:11.5]} 29... Ra6 {[%clk 0:01:01.1]} 30. Ke3 {[%clk 0:01:10.5]} 30...
f5 {[%clk 0:01:00.6]} 31. a4 {[%clk 0:00:55.1]} 31... h5 {[%clk 0:01:00.2]} 32.
Rc5 {[%clk 0:00:51.8]} 32... Kd6 {[%clk 0:00:55.6]} 33. Rb5 {[%clk 0:00:51.7]}
33... g6 {[%clk 0:00:53.9]} 34. f3 {[%clk 0:00:47.5]} 34... Rb6 {[%clk
0:00:52.7]} 35. Rxb6+ {[%clk 0:00:16.8]} 35... axb6 {[%clk 0:00:52.9]} 36. b4
{[%clk 0:00:17.2]} 36... Kd5 {[%clk 0:00:51.7]} 37. Kd3 {[%clk 0:00:17.4]} 37...
g5 {[%clk 0:00:51]} 38. a5 {[%clk 0:00:16.7]} 38... bxa5 {[%clk 0:00:50.9]} 39.
bxa5 {[%clk 0:00:17.6]} 39... Kc5 {[%clk 0:00:51.3]} 40. a6 {[%clk 0:00:17.6]}
40... Kb6 {[%clk 0:00:50.7]} 41. a7 {[%clk 0:00:18]} 41... Kxa7 {[%clk
0:00:50.7]} 42. Kc4 {[%clk 0:00:18.9]} 42... Kb6 {[%clk 0:00:49.4]} 43. Kd5
{[%clk 0:00:19.1]} 43... e4 {[%clk 0:00:40.3]} 44. fxe4 {[%clk 0:00:18.1]} 44...
fxe4 {[%clk 0:00:40.7]} 45. Kxe4 {[%clk 0:00:18.3]} 45... h4 {[%clk 0:00:39.4]}
46. g4 {[%clk 0:00:14.6]} 46... Kc6 {[%clk 0:00:37.1]} 47. Kf5 {[%clk
0:00:14.8]} 1-0

[Event "Late-Titled-Tuesday-Blitz-October-24-2023"]
[Site "Chess.com"]
[Date "2023.10.24"]
[Round "1"]
[White "MidnightFox"]
[Black "MikaelyanArman"]
[Result "0-1"]
[WhiteElo "2504"]
[BlackElo "2911"]
[TimeControl "180+1"]
[EndTime "14:07:06 PDT"]
[Termination "MikaelyanArman won by resignation"]

1. d4 {[%clk 0:03:00.9]} 1... Nf6 {[%clk 0:02:59.8]} 2. c4 {[%clk 0:03:01.2]}
2... e6 {[%clk 0:03:00.1]} 3. g3 {[%clk 0:03:00.8]} 3... c5 {[%clk 0:02:57.7]}
4. d5 {[%clk 0:03:00.4]} 4... exd5 {[%clk 0:02:58.6]} 5. cxd5 {[%clk 0:03:01]}
5... d6 {[%clk 0:02:59.4]} 6. Nc3 {[%clk 0:03:00.1]} 6... g6 {[%clk 0:03:00]} 7.
Bg2 {[%clk 0:03:00.3]} 7... Bg7 {[%clk 0:03:00.7]} 8. Nf3 {[%clk 0:02:58.7]}
8... O-O {[%clk 0:03:01.6]} 9. O-O {[%clk 0:02:59.1]} 9... Nbd7 {[%clk 0:03:01]}
10. a4 {[%clk 0:02:59.7]} 10... Re8 {[%clk 0:03:01]} 11. Nd2 {[%clk 0:03:00]}
11... Ne5 {[%clk 0:02:53.5]} 12. h3 {[%clk 0:02:56.1]} 12... Nh5 {[%clk
0:02:53.4]} 13. Kh2 {[%clk 0:02:55.6]} 13... f5 {[%clk 0:02:48.2]} 14. Ra3
{[%clk 0:02:51.4]} 14... f4 {[%clk 0:02:44.2]} 15. Nce4 {[%clk 0:02:50.9]} 15...
fxg3+ {[%clk 0:02:42.8]} 16. fxg3 {[%clk 0:02:47.4]} 16... Bf5 {[%clk
0:02:39.6]} 17. Rb3 {[%clk 0:02:13.8]} 17... Qd7 {[%clk 0:02:31.8]} 18. Ng5
{[%clk 0:02:07.3]} 18... Rab8 {[%clk 0:02:21.2]} 19. Ne6 {[%clk 0:02:06]} 19...
Bxe6 {[%clk 0:02:16.6]} 20. dxe6 {[%clk 0:02:06.4]} 20... Qxe6 {[%clk 0:02:17]}
21. Ra3 {[%clk 0:01:54.8]} 21... Kh8 {[%clk 0:02:10.6]} 22. Ne4 {[%clk
0:01:51.7]} 22... Rbd8 {[%clk 0:02:05.9]} 23. Ng5 {[%clk 0:01:51.6]} 23... Qe7
{[%clk 0:02:06.4]} 24. Bd5 {[%clk 0:01:46.6]} 24... Rf8 {[%clk 0:02:04.3]} 25.
Rb3 {[%clk 0:01:36.8]} 25... Rxf1 {[%clk 0:02:02.3]} 26. Qxf1 {[%clk 0:01:36.8]}
26... b6 {[%clk 0:01:51]} 27. Re3 {[%clk 0:01:26.4]} 27... Rf8 {[%clk
0:01:39.3]} 28. Nf3 {[%clk 0:01:15.9]} 28... Nxf3+ {[%clk 0:01:25.9]} 29. exf3
{[%clk 0:01:14.2]} 29... Qg5 {[%clk 0:01:22.1]} 30. g4 {[%clk 0:00:28.3]} 30...
Qxd5 {[%clk 0:01:18.4]} 31. gxh5 {[%clk 0:00:28.2]} 31... Qxh5 {[%clk
0:01:18.9]} 32. Bd2 {[%clk 0:00:21.4]} 32... Be5+ {[%clk 0:01:17]} 33. Kh1
{[%clk 0:00:19.9]} 33... Bd4 {[%clk 0:01:12.7]} 34. Rd3 {[%clk 0:00:18.7]} 34...
Qf5 {[%clk 0:01:10.5]} 35. Bc3 {[%clk 0:00:18.2]} 35... Bxc3 {[%clk 0:01:09.6]}
36. bxc3 {[%clk 0:00:17.7]} 36... Rf6 {[%clk 0:01:09.3]} 37. Re3 {[%clk
0:00:16.7]} 37... Re6 {[%clk 0:01:09.1]} 38. Rxe6 {[%clk 0:00:14.4]} 38... Qxe6
{[%clk 0:01:10]} 39. Kg2 {[%clk 0:00:14.2]} 39... Kg7 {[%clk 0:01:09.7]} 40. Qd3
{[%clk 0:00:13]} 40... d5 {[%clk 0:01:08.2]} 41. Qa6 {[%clk 0:00:11.2]} 41...
Qd7 {[%clk 0:01:08.1]} 42. Qd3 {[%clk 0:00:10.1]} 42... h5 {[%clk 0:01:06.7]}
43. Qe3 {[%clk 0:00:10.2]} 43... d4 {[%clk 0:01:05.2]} 44. Qe5+ {[%clk
0:00:10.1]} 44... Kh7 {[%clk 0:01:05.6]} 45. cxd4 {[%clk 0:00:10.7]} 45... cxd4
{[%clk 0:01:06]} 46. Qe2 {[%clk 0:00:09.4]} 46... d3 {[%clk 0:01:06.3]} 47. Qd2
{[%clk 0:00:10]} 47... a6 {[%clk 0:01:02.8]} 48. h4 {[%clk 0:00:07.7]} 48... b5
{[%clk 0:01:02.2]} 49. axb5 {[%clk 0:00:07.7]} 49... axb5 {[%clk 0:01:03.1]} 50.
Kg3 {[%clk 0:00:08]} 50... b4 {[%clk 0:01:02.8]} 51. Qxb4 {[%clk 0:00:07.1]}
51... d2 {[%clk 0:01:01.8]} 52. Qxd2 {[%clk 0:00:05.2]} 52... Qxd2 {[%clk
0:01:00.5]} 53. f4 {[%clk 0:00:04.7]} 53... Qe3+ {[%clk 0:01:00.2]} 54. Kg2
{[%clk 0:00:04.1]} 54... Qxf4 {[%clk 0:01:00.4]} 55. Kh3 {[%clk 0:00:04.2]}
55... Qg4+ {[%clk 0:01:00.6]} 56. Kh2 {[%clk 0:00:05]} 56... Qxh4+ {[%clk
0:01:00.9]} 0-1

[Event "Late-Titled-Tuesday-Blitz-October-24-2023"]
[Site "Chess.com"]
[Date "2023.10.24"]
[Round "1"]
[White "SchmakAttack"]
[Black "cthulhuuu"]
[Result "1-0"]
[WhiteElo "2757"]
[BlackElo "2426"]
[TimeControl "180+1"]
[EndTime "14:07:08 PDT"]
[Termination "SchmakAttack won on time"]

1. c4 {[%clk 0:03:00.9]} 1... Nf6 {[%clk 0:02:59.7]} 2. Nc3 {[%clk 0:02:57.1]}
2... g6 {[%clk 0:02:59.9]} 3. g3 {[%clk 0:02:56.2]} 3... Bg7 {[%clk 0:03:00.1]}
4. Bg2 {[%clk 0:02:56.6]} 4... O-O {[%clk 0:03:01]} 5. e4 {[%clk 0:02:56.9]}
5... d6 {[%clk 0:03:01.9]} 6. Nge2 {[%clk 0:02:57.4]} 6... c5 {[%clk 0:03:02.2]}
7. O-O {[%clk 0:02:57.7]} 7... Nc6 {[%clk 0:03:02.8]} 8. d3 {[%clk 0:02:58.2]}
8... Rb8 {[%clk 0:03:03.2]} 9. h3 {[%clk 0:02:57.6]} 9... b6 {[%clk 0:03:02.6]}
10. Be3 {[%clk 0:02:55.6]} 10... Nd7 {[%clk 0:02:59.6]} 11. d4 {[%clk 0:02:55]}
11... cxd4 {[%clk 0:02:59.5]} 12. Nxd4 {[%clk 0:02:55.9]} 12... Bb7 {[%clk
0:02:56.2]} 13. Rc1 {[%clk 0:02:49.1]} 13... Nc5 {[%clk 0:02:40]} 14. Qd2 {[%clk
0:02:01.7]} 14... Ne5 {[%clk 0:02:33.4]} 15. b3 {[%clk 0:02:01.4]} 15... Qd7
{[%clk 0:02:09.6]} 16. Rcd1 {[%clk 0:01:53]} 16... a6 {[%clk 0:01:44.2]} 17. f4
{[%clk 0:01:04.5]} 17... Nc6 {[%clk 0:01:37.7]} 18. Nd5 {[%clk 0:00:54.2]} 18...
b5 {[%clk 0:01:19.7]} 19. cxb5 {[%clk 0:00:51.9]} 19... axb5 {[%clk 0:01:20.6]}
20. f5 {[%clk 0:00:44.8]} 20... Ne5 {[%clk 0:01:10.5]} 21. Bg5 {[%clk
0:00:39.7]} 21... Bxd5 {[%clk 0:01:09.3]} 22. exd5 {[%clk 0:00:39.9]} 22... Ra8
{[%clk 0:00:56.3]} 23. Nc6 {[%clk 0:00:35.3]} 23... Nxc6 {[%clk 0:00:29.7]} 24.
dxc6 {[%clk 0:00:36.2]} 24... Qa7 {[%clk 0:00:29]} 25. Kh2 {[%clk 0:00:36.8]}
25... f6 {[%clk 0:00:29]} 26. Be3 {[%clk 0:00:32.3]} 26... Qxa2 {[%clk
0:00:28.5]} 27. Bxc5 {[%clk 0:00:15.5]} 27... dxc5 {[%clk 0:00:27.6]} 28. c7
{[%clk 0:00:15.9]} 28... Qxd2 {[%clk 0:00:04.1]} 29. Rxd2 {[%clk 0:00:16.8]}
29... Rac8 {[%clk 0:00:04.6]} 30. Rd7 {[%clk 0:00:17.1]} 30... gxf5 {[%clk
0:00:02.1]} 31. Rxe7 {[%clk 0:00:13.6]} 1-0

[Event "Late-Titled-Tuesday-Blitz-October-24-2023"]
[Site "Chess.com"]
[Date "2023.10.24"]
[Round "1"]
[White "dianamirza"]
[Black "vangulio"]
[Result "0-1"]
[WhiteElo "1999"]
[BlackElo "2549"]
[TimeControl "180+1"]
[EndTime "14:07:10 PDT"]
[Termination "vangulio won by resignation"]

1. e4 {[%clk 0:02:58]} 1... c5 {[%clk 0:02:59.5]} 2. c4 {[%clk 0:02:55.7]} 2...
Nc6 {[%clk 0:02:59.1]} 3. Nc3 {[%clk 0:02:56.1]} 3... g6 {[%clk 0:02:59.2]} 4.
g3 {[%clk 0:02:55.9]} 4... Bg7 {[%clk 0:02:59.7]} 5. Bg2 {[%clk 0:02:56.3]} 5...
e6 {[%clk 0:02:47.5]} 6. Nge2 {[%clk 0:02:56.4]} 6... Nge7 {[%clk 0:02:47.8]} 7.
O-O {[%clk 0:02:56.8]} 7... O-O {[%clk 0:02:46.9]} 8. d3 {[%clk 0:02:57.4]} 8...
d6 {[%clk 0:02:46.9]} 9. Be3 {[%clk 0:02:57.8]} 9... Nd4 {[%clk 0:02:47.1]} 10.
Qd2 {[%clk 0:02:56.9]} 10... Rb8 {[%clk 0:02:46.7]} 11. f4 {[%clk 0:02:55.5]}
11... a6 {[%clk 0:02:44.8]} 12. Rab1 {[%clk 0:02:55.1]} 12... b5 {[%clk
0:02:43.2]} 13. b3 {[%clk 0:02:55.8]} 13... Bb7 {[%clk 0:02:39.7]} 14. g4 {[%clk
0:02:48]} 14... f5 {[%clk 0:02:39.5]} 15. g5 {[%clk 0:02:35.4]} 15... d5 {[%clk
0:02:34.9]} 16. cxd5 {[%clk 0:02:33.9]} 16... exd5 {[%clk 0:02:34.5]} 17. e5
{[%clk 0:02:25.5]} 17... Nxe2+ {[%clk 0:02:34.4]} 18. Nxe2 {[%clk 0:02:23.1]}
18... d4 {[%clk 0:02:34.8]} 19. Bf2 {[%clk 0:02:21.5]} 19... Qd7 {[%clk
0:02:33.8]} 20. Rbc1 {[%clk 0:02:09.1]} 20... Rbc8 {[%clk 0:02:31.2]} 21. b4
{[%clk 0:02:02.9]} 21... Bxg2 {[%clk 0:02:24.6]} 22. Kxg2 {[%clk 0:02:02.1]}
22... cxb4 {[%clk 0:01:58.3]} 23. Qxb4 {[%clk 0:02:02.1]} 23... Nc6 {[%clk
0:01:51.3]} 24. Qb3+ {[%clk 0:01:52.6]} 24... Kh8 {[%clk 0:01:51]} 25. Rc5
{[%clk 0:01:47.4]} 25... Nxe5 {[%clk 0:01:36.3]} 26. Rxc8 {[%clk 0:01:40.6]}
26... Qb7+ {[%clk 0:01:35.9]} 27. Kh3 {[%clk 0:01:22.5]} 27... Qf3+ {[%clk
0:01:34.7]} 28. Ng3 {[%clk 0:01:22.5]} 28... Rxc8 {[%clk 0:01:28.8]} 29. fxe5
{[%clk 0:01:21.3]} 29... Qg4+ {[%clk 0:01:22.4]} 30. Kg2 {[%clk 0:01:20.5]}
30... f4 {[%clk 0:01:23]} 31. Be1 {[%clk 0:01:02.3]} 31... fxg3 {[%clk
0:01:18.1]} 32. Bxg3 {[%clk 0:01:02.1]} 32... Bxe5 {[%clk 0:01:12.8]} 33. Rf7
{[%clk 0:00:40.9]} 33... Qxg5 {[%clk 0:01:02.9]} 34. Qe6 {[%clk 0:00:35.9]}
34... Rc2+ {[%clk 0:00:48.8]} 35. Kf1 {[%clk 0:00:15]} 35... Rc1+ {[%clk
0:00:38.8]} 36. Be1 {[%clk 0:00:12.9]} 36... Rxe1+ {[%clk 0:00:25.8]} 37. Kxe1
{[%clk 0:00:12.5]} 37... Qe3+ {[%clk 0:00:26]} 38. Kf1 {[%clk 0:00:11.4]} 38...
Qxd3+ {[%clk 0:00:26.8]} 39. Kg2 {[%clk 0:00:11.5]} 39... Qe4+ {[%clk
0:00:22.7]} 40. Kg1 {[%clk 0:00:11.7]} 40... Bxh2+ {[%clk 0:00:22.5]} 41. Kxh2
{[%clk 0:00:09.9]} 41... Qxe6 {[%clk 0:00:22.7]} 42. Rf8+ {[%clk 0:00:09.9]}
42... Kg7 {[%clk 0:00:22.8]} 0-1

[Event "Late-Titled-Tuesday-Blitz-October-24-2023"]
[Site "Chess.com"]
[Date "2023.10.24"]
[Round "1"]
[White "Blitzstream"]
[Black "Truequitos"]
[Result "1-0"]
[WhiteElo "2815"]
[BlackElo "2466"]
[TimeControl "180+1"]
[EndTime "14:07:11 PDT"]
[Termination "Blitzstream won by resignation"]

1. d4 {[%clk 0:02:58.9]} 1... d5 {[%clk 0:02:59.7]} 2. Bf4 {[%clk 0:02:58.6]}
2... c5 {[%clk 0:02:59.3]} 3. e3 {[%clk 0:02:59]} 3... Qb6 {[%clk 0:02:56.9]} 4.
Nc3 {[%clk 0:02:58.7]} 4... e6 {[%clk 0:02:56.3]} 5. Nb5 {[%clk 0:02:57.9]} 5...
Na6 {[%clk 0:02:54.8]} 6. a4 {[%clk 0:02:58]} 6... cxd4 {[%clk 0:02:39.6]} 7.
exd4 {[%clk 0:02:56.6]} 7... Bd7 {[%clk 0:02:34.4]} 8. Nf3 {[%clk 0:02:55.4]}
8... Nf6 {[%clk 0:02:25.3]} 9. Bd3 {[%clk 0:02:53.8]} 9... Be7 {[%clk
0:02:19.8]} 10. O-O {[%clk 0:02:52.9]} 10... O-O {[%clk 0:02:20.1]} 11. c3
{[%clk 0:02:52.9]} 11... Rfc8 {[%clk 0:02:14.8]} 12. Ne5 {[%clk 0:02:52.9]}
12... Be8 {[%clk 0:02:14.2]} 13. Qf3 {[%clk 0:02:50.9]} 13... Qd8 {[%clk
0:02:06.1]} 14. Rfe1 {[%clk 0:02:49.8]} 14... Nc7 {[%clk 0:02:05.8]} 15. Qh3
{[%clk 0:02:41.3]} 15... Nxb5 {[%clk 0:02:00.2]} 16. axb5 {[%clk 0:02:42.2]}
16... g6 {[%clk 0:01:52.3]} 17. Bg5 {[%clk 0:02:39.7]} 17... Nd7 {[%clk
0:01:48.2]} 18. Bxe7 {[%clk 0:02:38.2]} 18... Qxe7 {[%clk 0:01:49.1]} 19. Ng4
{[%clk 0:02:33.3]} 19... Qg5 {[%clk 0:01:46.6]} 20. g3 {[%clk 0:02:25.9]} 20...
h5 {[%clk 0:01:45.4]} 21. Ne5 {[%clk 0:02:25]} 21... Nxe5 {[%clk 0:01:45.4]} 22.
Rxe5 {[%clk 0:02:25.3]} 22... Qf6 {[%clk 0:01:42.8]} 23. f4 {[%clk 0:02:20.6]}
23... Bd7 {[%clk 0:01:39]} 24. Qf1 {[%clk 0:02:13.8]} 24... Kg7 {[%clk
0:01:37.5]} 25. Qe2 {[%clk 0:02:12.1]} 25... Rh8 {[%clk 0:01:34.7]} 26. h4
{[%clk 0:02:11.8]} 26... Rhc8 {[%clk 0:01:33.1]} 27. Rg5 {[%clk 0:02:10]} 27...
Kf8 {[%clk 0:01:30.1]} 28. Kh2 {[%clk 0:02:05.3]} 28... Rc7 {[%clk 0:01:25.4]}
29. Re5 {[%clk 0:02:02.4]} 29... b6 {[%clk 0:01:24.3]} 30. Qf3 {[%clk
0:01:53.3]} 30... Kg7 {[%clk 0:01:24.1]} 31. Rg5 {[%clk 0:01:45.3]} 31... Rac8
{[%clk 0:01:22.5]} 32. Qxh5 {[%clk 0:01:40.9]} 32... Rh8 {[%clk 0:01:21]} 33.
Qf3 {[%clk 0:01:38.3]} 33... Kf8 {[%clk 0:01:12.8]} 34. Kg2 {[%clk 0:01:36.6]}
34... Be8 {[%clk 0:01:06.8]} 35. Rh1 {[%clk 0:01:34.5]} 35... Ke7 {[%clk
0:01:03.4]} 36. Qe3 {[%clk 0:01:34.2]} 36... Kd8 {[%clk 0:01:01.8]} 37. Qe5
{[%clk 0:01:33]} 37... Qxe5 {[%clk 0:00:57.5]} 38. fxe5 {[%clk 0:01:33.9]} 38...
Ke7 {[%clk 0:00:52.8]} 39. Rg4 {[%clk 0:01:34.1]} 39... Bd7 {[%clk 0:00:51.5]}
40. Rf4 {[%clk 0:01:34.3]} 40... Rcc8 {[%clk 0:00:50]} 41. Rf6 {[%clk
0:01:34.2]} 41... Rcg8 {[%clk 0:00:46.3]} 42. Rhf1 {[%clk 0:01:33.7]} 42... Rg7
{[%clk 0:00:45.1]} 43. Kf3 {[%clk 0:01:33.2]} 43... g5 {[%clk 0:00:40.1]} 44.
hxg5 {[%clk 0:01:27.8]} 44... Rxg5 {[%clk 0:00:41]} 45. Kg2 {[%clk 0:01:28.1]}
45... Rhg8 {[%clk 0:00:40.1]} 46. Rxf7+ {[%clk 0:01:27.1]} 46... Ke8 {[%clk
0:00:40.2]} 47. R7f3 {[%clk 0:01:26.2]} 47... Ke7 {[%clk 0:00:37.9]} 48. Rf7+
{[%clk 0:01:03.8]} 48... Ke8 {[%clk 0:00:33]} 49. R1f3 {[%clk 0:01:03.4]} 49...
Rxg3+ {[%clk 0:00:29.3]} 50. Rxg3 {[%clk 0:01:03.1]} 50... Rxg3+ {[%clk
0:00:30.2]} 51. Kxg3 {[%clk 0:01:03.6]} 51... Kxf7 {[%clk 0:00:31.1]} 52. Kf4
{[%clk 0:01:03.8]} 52... Kg7 {[%clk 0:00:28.9]} 53. Kg5 {[%clk 0:01:03.8]} 53...
Be8 {[%clk 0:00:29.5]} 54. b3 {[%clk 0:01:02.7]} 54... Bd7 {[%clk 0:00:22.9]}
55. c4 {[%clk 0:01:01.4]} 55... Be8 {[%clk 0:00:22.8]} 56. c5 {[%clk 0:00:58.9]}
56... bxc5 {[%clk 0:00:20.3]} 57. dxc5 {[%clk 0:00:59.8]} 57... d4 {[%clk
0:00:18.8]} 58. c6 {[%clk 0:00:57.7]} 58... Kf8 {[%clk 0:00:18]} 59. Kf6 {[%clk
0:00:57.4]} 1-0